fUSD/lending_fUSD_20240222
["ID","MTS","AMOUNT","RATE_DAILY","PERIOD"]
[314886573,1708618282721,-18475.21,0.00033424,4]
[314886574,1708618282730,-500.0,0.00033424,4]
[314886575,1708618282740,-4464.23,0.00033424,4]
[314886576,1708618282750,-500.0,0.00033424,4]
[314886577,1708618282761,-1588.77,0.00033424,4]
[314886578,1708618282770,-500.0,0.00033424,4]
[314886579,1708618282780,-500.0,0.00033424,4]
[314886580,1708618282790,-500.0,0.00033424,4]
[314886581,1708618282799,-685.61,0.00033424,4]
[314886582,1708618282809,-500.0,0.00033424,4]
[314886583,1708618282817,-1337.25,0.00033424,4]
[314886584,1708618282826,-974.75,0.00033424,4]
[314886585,1708618282835,-500.0,0.00033424,4]
[314886586,1708618282844,-500.0,0.00033424,4]
[314886587,1708618282853,-500.0,0.00033424,4]
[314886588,1708618282862,-981.11,0.00033424,4]
[314886589,1708618282872,-1581.03,0.00033424,4]
[314886590,1708618282881,-500.0,0.00033424,4]
[314886591,1708618282890,-508.59,0.00033424,4]
[314886592,1708618282899,-774.04,0.00033424,4]
[314886593,1708618282908,-2026.95,0.00033424,4]
[314886594,1708618282917,-500.0,0.00033424,4]
[314886595,1708618282926,-500.0,0.00033424,4]
[314886596,1708618282935,-928.69,0.00033424,4]
[314886597,1708618282944,-2162.97,0.00033424,4]
[314886598,1708618282953,-1552.29,0.00033424,4]
[314886599,1708618282962,-1246.86,0.00033424,4]
[314886600,1708618282972,-500.0,0.00033424,4]
[314886601,1708618282982,-979.08,0.00033424,4]
[314886602,1708618282991,-856.28,0.00033424,4]
[314886603,1708618283000,-1566.45,0.00033424,4]
[314886604,1708618283011,-500.0,0.00033424,4]
[314886605,1708618283020,-822.87,0.00033424,4]
[314886606,1708618283029,-1664.58,0.00033424,4]
[314886607,1708618283039,-500.0,0.00033424,4]
[314886608,1708618283048,-2312.75,0.00033424,4]
[314886609,1708618283057,-1301.74,0.00033424,4]
[314886610,1708618283066,-500.0,0.00033424,4]
[314886611,1708618283075,-500.0,0.00033424,4]
[314886612,1708618283084,-500.0,0.00033424,4]
[314886613,1708618283094,-500.0,0.00033424,4]
[314886614,1708618283103,-1766.15,0.00033424,4]
[314886615,1708618283111,-500.0,0.00033424,4]
[314886616,1708618283120,-508.42,0.00033424,4]
[314886617,1708618283130,-567.2,0.00033424,4]
[314886618,1708618283139,-500.0,0.00033424,4]
[314886619,1708618283148,-871.62,0.00033424,4]
[314886620,1708618283157,-500.0,0.00033424,4]
[314886621,1708618283166,-1599.53,0.00033424,4]
[314886622,1708618283175,-500.0,0.00033424,4]
[314886623,1708618283185,-500.0,0.00033424,4]
[314886624,1708618283194,-1660.65,0.00033424,4]
[314886625,1708618283203,-500.0,0.00033424,4]
[314886626,1708618283213,-622.07,0.00033424,4]
[314886627,1708618283222,-3745.54,0.00033424,4]
[314886628,1708618283231,-455.41715357,0.00033424,4]
[314886629,1708618283241,-838.28,0.00033424,4]
[314886630,1708618283250,-500.0,0.00033424,4]
[314886631,1708618283261,-3330.02,0.00033424,4]
[314886632,1708618283271,-691.06,0.00033424,4]
[314886633,1708618283280,-1414.44,0.00033424,4]
[314886634,1708618283289,-7663.65,0.00033424,4]
[314886635,1708618283298,-1289.21,0.00033424,4]
[314886636,1708618283307,-500.0,0.00033424,4]
[314886637,1708618283317,-500.0,0.00033424,4]
[314886638,1708618283326,-518.31939874,0.00033424,4]
[314886639,1708618283335,-647.08,0.00033424,4]
[314886640,1708618283344,-548.88,0.00033424,4]
[314886641,1708618283355,-1185.6,0.00033424,4]
[314886642,1708618283365,-1413.03,0.00033424,4]
[314886643,1708618283374,-2706.19,0.00033424,4]
[314886644,1708618283383,-500.0,0.00033424,4]
[314886645,1708618283393,-500.0,0.00033424,4]
[314886646,1708618283403,-1639.74,0.00033424,4]
[314886647,1708618283413,-1325.03,0.00033424,4]
[314886648,1708618283422,-500.0,0.00033424,4]
[314886649,1708618283431,-975.56,0.00033424,4]
[314886650,1708618283440,-500.0,0.00033424,4]
[314886651,1708618283449,-1744.18,0.00033424,4]
[314886652,1708618283458,-500.0,0.00033424,4]
[314886653,1708618283468,-375.8356691,0.00033424,2]
[314886654,1708618283477,-7768.0,0.00033424,4]
[314886655,1708618283486,-500.0,0.00033424,4]
[314886656,1708618283495,-602.21,0.00033424,4]
[314886657,1708618283505,-992.95,0.00033424,4]
[314886658,1708618283515,-500.0,0.00033424,4]
[314886659,1708618283524,-773.87,0.00033424,4]
[314886660,1708618283533,-500.0,0.00033424,4]
[314886661,1708618283543,-2670.2,0.00033424,4]
[314886662,1708618283553,-500.0,0.00033424,4]
[314886663,1708618283562,-164.65,0.00033424,4]
[314886664,1708618283571,-384.0,0.00033425,2]
[314886665,1708618283581,-573.87,0.00033442,2]
[314886666,1708618283591,-150.0,0.000335,6]
[314886667,1708618283600,-157.0,0.00033556,2]
[314886668,1708618283609,-200.0,0.000336,7]
[314886669,1708618283619,-3000.0,0.000336,16]
[314886670,1708618283628,-3000.0,0.000336,16]
[314886671,1708618283637,-238.831091,0.000336,2]
[314886672,1708618283647,-1994.121372,0.000336,2]
[314886673,1708618283656,-200.0,0.000336,2]
[314886674,1708618283665,-3000.0,0.0003361,16]
[314886675,1708618283677,-3000.0,0.0003361,16]
[314886676,1708618283686,-3000.0,0.0003362,16]
[314886677,1708618283695,-5498.765414,0.0003362,16]
[314886678,1708618283704,-209.0,0.00033627,10]
[314886679,1708618283713,-3000.0,0.0003363,16]
[314886680,1708618283723,-3000.0,0.0003364,16]
[314886681,1708618283733,-3488.698535,0.0003365,16]
[314886682,1708618283742,-440.52,0.00033652,2]
[314886683,1708618283751,-182.0,0.00033673,2]
[314886684,1708618283762,-150.0,0.00033697,30]
[314886685,1708618283771,-150.0,0.00033697,30]
[314886686,1708618283781,-500.0,0.00033698,4]
[314886687,1708618283790,-500.0,0.00033698,4]
[314886688,1708618283799,-500.0,0.00033698,4]
[314886689,1708618283808,-500.0,0.00033698,4]
[314886690,1708618283817,-681.84,0.00033698,4]
[314886691,1708618283826,-507.1,0.00033698,4]
[314886692,1708618283835,-500.0,0.00033698,4]
[314886693,1708618283845,-500.0,0.00033698,4]
[314886694,1708618283854,-500.0,0.00033698,4]
[314886695,1708618283863,-2741.93,0.00033698,4]
[314886696,1708618283872,-500.0,0.00033698,4]
[314886697,1708618283881,-500.0,0.00033698,4]
[314886698,1708618283890,-500.0,0.00033698,4]
[314886699,1708618283899,-4425.58,0.00033698,4]
[314886700,1708618283908,-500.0,0.00033698,4]
[314886701,1708618283917,-500.0,0.00033698,4]
[314886702,1708618283927,-500.0,0.00033698,4]
[314886703,1708618283936,-500.0,0.00033698,4]
[314886704,1708618283946,-500.0,0.00033698,2]
[314886705,1708618283955,-520.47,0.00033698,4]
[314886706,1708618283964,-250.0,0.00033698,4]
[314886707,1708618283973,-500.0,0.00033698,4]
[314886708,1708618283983,-500.0,0.00033698,4]
[314886709,1708618283993,-513.14,0.00033698,4]
[314886710,1708618284002,-567.0,0.00033698,4]
[314886711,1708618284012,-701.75,0.00033698,4]
[314886712,1708618284021,-500.0,0.00033698,4]
[314886713,1708618284030,-500.0,0.00033698,4]
[314886714,1708618284040,-500.0,0.00033698,4]
[314886715,1708618284049,-248.20913184,0.00033698,4]
[314886716,1708618284058,-500.0,0.00033698,4]
[314886717,1708618284067,-500.0,0.00033698,4]
[314886718,1708618284077,-813.56,0.00033698,4]
[314886719,1708618284086,-500.0,0.00033698,4]
[314886720,1708618284095,-500.0,0.00033698,4]
[314886721,1708618284104,-500.0,0.00033698,4]
[314886722,1708618284113,-500.0,0.00033698,4]
[314886723,1708618284122,-500.0,0.00033698,4]
[314886724,1708618284132,-500.0,0.00033698,4]
[314886725,1708618284141,-500.0,0.00033698,4]
[314886726,1708618284150,-500.0,0.00033698,4]
[314886727,1708618284160,-500.0,0.00033698,4]
[314886728,1708618284169,-500.0,0.00033698,4]
[314886729,1708618284178,-500.0,0.00033698,4]
[314886730,1708618284188,-500.0,0.00033698,4]
[314886731,1708618284197,-500.0,0.00033698,4]
[314886732,1708618284206,-500.0,0.00033698,4]
[314886733,1708618284215,-561.63,0.00033698,4]
[314886734,1708618284224,-500.0,0.00033698,4]
[314886735,1708618284234,-500.0,0.00033698,4]
[314886736,1708618284243,-500.0,0.00033698,4]
[314886737,1708618284253,-852.09,0.00033698,4]
[314886738,1708618284262,-500.0,0.00033698,4]
[314886739,1708618284272,-500.0,0.00033698,4]
[314886740,1708618284281,-500.0,0.00033698,4]
[314886741,1708618284290,-500.0,0.00033698,4]
[314886742,1708618284299,-500.0,0.00033698,4]
[314886743,1708618284309,-540.85,0.00033698,4]
[314886744,1708618284319,-500.0,0.00033698,4]
[314886745,1708618284328,-500.0,0.00033698,4]
[314886746,1708618284337,-500.0,0.00033698,4]
[314886747,1708618284346,-500.0,0.00033698,4]
[314886748,1708618284355,-500.0,0.00033698,4]
[314886749,1708618284364,-500.0,0.00033698,4]
[314886750,1708618284373,-479.81688703,0.00033698,4]
[314886751,1708618284382,-500.0,0.00033698,4]
[314886752,1708618284391,-500.0,0.00033698,4]
[314886753,1708618284400,-500.0,0.00033698,4]
[314886754,1708618284409,-500.0,0.00033698,4]
[314886755,1708618284418,-548.58,0.00033698,4]
[314886756,1708618284427,-500.0,0.00033698,4]
[314886757,1708618284437,-1013.57,0.00033698,4]
[314886758,1708618284447,-500.0,0.00033698,4]
[314886759,1708618284457,-500.0,0.00033698,4]
[314886760,1708618284468,-500.0,0.00033698,4]
[314886761,1708618284477,-500.0,0.00033698,4]
[314886762,1708618284487,-1014.83,0.00033698,4]
[314886763,1708618284496,-369.28515381,0.00033698,4]
[314886764,1708618284505,-500.0,0.00033698,4]
[314886765,1708618284516,-500.0,0.00033698,4]
[314886766,1708618284525,-524.95138648,0.00033698,4]
[314886767,1708618284534,-500.0,0.00033698,4]
[314886768,1708618284543,-1535.09,0.00033698,4]
[314886769,1708618284552,-500.0,0.00033698,4]
[314886770,1708618284561,-539.77,0.00033698,4]
[314886771,1708618284570,-500.0,0.00033698,4]
[314886772,1708618284579,-621.02,0.00033698,4]
[314886773,1708618284590,-500.0,0.00033698,4]
[314886774,1708618284599,-500.0,0.00033698,4]
[314886775,1708618284608,-500.0,0.00033698,4]
[314886776,1708618284617,-924.07,0.00033698,4]
[314886777,1708618284627,-500.0,0.00033698,4]
[314886778,1708618284636,-599.26,0.00033698,4]
[314886779,1708618284645,-500.0,0.00033698,4]
[314886780,1708618284655,-825.98,0.00033698,4]
[314886781,1708618284664,-214.41417936,0.00033698,4]
[314886782,1708618284674,-601.69384031,0.00033698,4]
[314886783,1708618284685,-500.0,0.00033698,4]
[314886784,1708618284694,-500.0,0.00033698,4]
[314886785,1708618284703,-500.0,0.00033698,4]
[314886786,1708618284713,-671.02,0.00033698,4]
[314886787,1708618284724,-958.13,0.00033698,4]
[314886788,1708618284734,-500.0,0.00033698,4]
[314886789,1708618284743,-500.0,0.00033698,4]
[314886790,1708618284753,-500.0,0.00033698,4]
[314886791,1708618284763,-500.0,0.00033698,4]
[314886792,1708618284773,-500.0,0.00033698,4]
[314886793,1708618284784,-166.67619949,0.00033698,4]
[314886794,1708618284793,-611.64,0.00033698,4]
[314886795,1708618284803,-680.88,0.00033698,4]
[314886796,1708618284812,-500.0,0.00033698,4]
[314886797,1708618284821,-500.0,0.00033698,4]
[314886798,1708618284830,-500.0,0.00033698,4]
[314886799,1708618284839,-500.0,0.00033698,4]
[314886800,1708618284849,-500.0,0.00033698,4]
[314886801,1708618284858,-679.39,0.00033698,4]
[314886802,1708618284867,-500.0,0.00033698,4]
[314886803,1708618284876,-667.51,0.00033698,4]
[314886804,1708618284885,-545.1,0.00033698,4]
[314886805,1708618284894,-821.32,0.00033698,4]
[314886806,1708618284903,-500.0,0.00033698,4]
[314886807,1708618284912,-964.27,0.00033698,4]
[314886808,1708618284921,-500.0,0.00033698,4]
[314886809,1708618284930,-500.0,0.00033698,4]
[314886810,1708618284939,-758.26,0.00033698,4]
[314886811,1708618284948,-500.0,0.00033698,4]
[314886812,1708618284957,-500.0,0.00033698,2]
[314886813,1708618284966,-563.34,0.00033698,4]
[314886814,1708618284975,-500.0,0.00033698,4]
[314886815,1708618284985,-654.31,0.00033698,4]
[314886816,1708618284995,-1039.11,0.00033698,4]
[314886817,1708618285004,-500.0,0.00033698,4]
[314886818,1708618285014,-321.86,0.00033698,4]
[314886819,1708618285023,-571.21,0.00033698,4]
[314886820,1708618285032,-591.5,0.00033698,4]
[314886821,1708618285041,-500.0,0.00033698,4]
[314886822,1708618285050,-925.35,0.00033698,4]
[314886823,1708618285059,-500.0,0.00033698,4]
[314886824,1708618285068,-500.0,0.00033698,4]
[314886825,1708618285078,-500.0,0.00033698,4]
[314886826,1708618285087,-500.0,0.00033698,4]
[314886827,1708618285097,-783.53,0.00033698,4]
[314886828,1708618285106,-947.04,0.00033698,4]
[314886829,1708618285116,-980.43,0.00033698,4]
[314886830,1708618285125,-543.20527708,0.00033698,4]
[314886831,1708618285134,-505.19,0.00033698,4]
[314886832,1708618285143,-500.0,0.00033698,4]
[314886833,1708618285152,-534.91,0.00033698,4]
[314886834,1708618285162,-550.19,0.00033698,4]
[314886835,1708618285171,-500.0,0.00033698,4]
[314886836,1708618285180,-785.9,0.00033698,4]
[314886837,1708618285189,-196.53364356,0.00033698,4]
[314886838,1708618285198,-500.0,0.00033698,4]
[314886839,1708618285207,-975.92,0.00033698,4]
[314886840,1708618285216,-791.75,0.00033698,4]
[314886841,1708618285225,-564.56,0.00033698,4]
[314886842,1708618285234,-500.0,0.00033698,4]
[314886843,1708618285243,-500.0,0.00033698,4]
[314886844,1708618285252,-500.0,0.00033698,4]
[314886845,1708618285262,-500.0,0.00033698,4]
[314886846,1708618285272,-500.0,0.00033698,4]
[314886847,1708618285281,-728.33,0.00033698,4]
[314886848,1708618285290,-500.0,0.00033698,4]
[314886849,1708618285299,-638.38,0.00033698,4]
[314886850,1708618285308,-500.0,0.00033698,4]
[314886851,1708618285317,-758.22,0.00033698,4]
[314886852,1708618285326,-659.05,0.00033698,4]
[314886853,1708618285334,-500.0,0.00033698,4]
[314886854,1708618285343,-500.0,0.00033698,4]
[314886855,1708618285352,-605.25,0.00033698,4]
[314886856,1708618285362,-500.0,0.00033698,4]
[314886857,1708618285371,-668.43,0.00033698,4]
[314886858,1708618285380,-500.0,0.00033698,4]
[314886859,1708618285389,-348.59950585,0.00033698,4]
[314886860,1708618285398,-556.92931547,0.00033698,4]
[314886861,1708618285406,-500.0,0.00033698,4]
[314886862,1708618285415,-1022.01,0.00033698,4]
[314886863,1708618285424,-500.0,0.00033698,2]
[314886864,1708618285435,-500.0,0.00033698,4]
[314886865,1708618285445,-500.0,0.00033698,4]
[314886866,1708618285453,-500.0,0.00033698,4]
[314886867,1708618285463,-500.0,0.00033698,4]
[314886868,1708618285472,-1203.06,0.00033698,4]
[314886869,1708618285481,-669.98,0.00033698,4]
[314886870,1708618285491,-1059.01,0.00033698,4]
[314886871,1708618285500,-1026.02,0.00033698,4]
[314886872,1708618285510,-500.0,0.00033698,4]
[314886873,1708618285520,-540.01,0.00033698,4]
[314886874,1708618285530,-803.13,0.00033698,4]
[314886875,1708618285539,-500.0,0.00033698,4]
[314886876,1708618285549,-564.59601184,0.00033698,4]
[314886877,1708618285558,-500.0,0.00033698,4]
[314886878,1708618285568,-599.34,0.00033698,4]
[314886879,1708618285578,-621.16,0.00033698,4]
[314886880,1708618285587,-665.89,0.00033698,4]
[314886881,1708618285596,-899.87,0.00033698,4]
[314886882,1708618285606,-521.83,0.00033698,4]
[314886883,1708618285615,-1085.44,0.00033698,4]
[314886884,1708618285626,-542.1,0.00033698,4]
[314886885,1708618285635,-500.0,0.00033698,4]
[314886886,1708618285645,-621.24,0.00033698,4]
[314886887,1708618285654,-904.17,0.00033698,4]
[314886888,1708618285664,-1276.11,0.00033698,4]
[314886889,1708618285675,-526.34,0.00033698,4]
[314886890,1708618285685,-537.17,0.00033698,4]
[314886891,1708618285694,-500.0,0.00033698,2]
[314886892,1708618285706,-593.07,0.00033698,4]
[314886893,1708618285716,-500.0,0.00033698,4]
[314886894,1708618285726,-500.0,0.00033698,4]
[314886895,1708618285736,-500.0,0.00033698,4]
[314886896,1708618285746,-1664.09,0.00033698,4]
[314886897,1708618285756,-500.0,0.00033698,4]
[314886898,1708618285767,-500.0,0.00033698,4]
[314886899,1708618285777,-500.0,0.00033698,4]
[314886900,1708618285787,-707.97,0.00033698,4]
[314886901,1708618285796,-500.0,0.00033698,4]
[314886902,1708618285806,-541.25,0.00033698,4]
[314886903,1708618285815,-806.08,0.00033698,4]
[314886904,1708618285825,-500.0,0.00033698,4]
[314886905,1708618285834,-518.46192316,0.00033698,4]
[314886906,1708618285844,-500.0,0.00033698,4]
[314886907,1708618285854,-500.0,0.00033698,2]
[314886908,1708618285863,-795.33,0.00033698,4]
[314886909,1708618285872,-500.0,0.00033698,4]
[314886910,1708618285882,-500.0,0.00033698,4]
[314886911,1708618285891,-971.84,0.00033698,4]
[314886912,1708618285901,-500.0,0.00033698,4]
[314886913,1708618285911,-500.0,0.00033698,4]
[314886914,1708618285921,-500.0,0.00033698,4]
[314886915,1708618285930,-500.0,0.00033698,4]
[314886916,1708618285939,-500.0,0.00033698,4]
[314886917,1708618285949,-912.15,0.00033698,4]
[314886918,1708618285958,-500.0,0.00033698,4]
[314886919,1708618285967,-500.0,0.00033698,4]
[314886920,1708618285976,-684.49,0.00033698,4]
[314886921,1708618285986,-500.0,0.00033698,4]
[314886922,1708618285995,-500.0,0.00033698,4]
[314886923,1708618286005,-500.0,0.00033698,4]
[314886924,1708618286016,-500.0,0.00033698,4]
[314886925,1708618286025,-500.0,0.00033698,2]
[314886926,1708618286034,-500.0,0.00033698,4]
[314886927,1708618286044,-520.87,0.00033698,4]
[314886928,1708618286053,-732.41,0.00033698,4]
[314886929,1708618286063,-711.38,0.00033698,4]
[314886930,1708618286072,-500.0,0.00033698,4]
[314886931,1708618286082,-548.69,0.00033698,4]
[314886932,1708618286091,-892.63,0.00033698,4]
[314886933,1708618286100,-610.18,0.00033698,4]
[314886934,1708618286115,-861.61,0.00033698,4]
[314886935,1708618286124,-500.0,0.00033698,4]
[314886936,1708618286134,-500.0,0.00033698,4]
[314886937,1708618286144,-619.5,0.00033698,4]
[314886938,1708618286153,-500.0,0.00033698,2]
[314886939,1708618286163,-783.44,0.00033698,4]
[314886940,1708618286173,-813.29,0.00033698,4]
[314886941,1708618286183,-500.0,0.00033698,14]
[314886942,1708618286192,-500.0,0.00033698,4]
[314886943,1708618286201,-500.0,0.00033698,4]
[314886944,1708618286211,-500.0,0.00033698,4]
[314886945,1708618286221,-500.0,0.00033698,4]
[314886946,1708618286230,-1606.49,0.00033698,4]
[314886947,1708618286239,-500.0,0.00033698,4]
[314886948,1708618286248,-500.0,0.00033698,4]
[314886949,1708618286258,-500.0,0.00033698,4]
[314886950,1708618286270,-962.94,0.00033698,4]
[314886951,1708618286283,-1214.57,0.00033698,4]
[314886952,1708618286292,-500.0,0.00033698,4]
[314886953,1708618286301,-500.0,0.00033698,4]
[314886954,1708618286311,-500.0,0.00033698,4]
[314886955,1708618286320,-500.0,0.00033698,4]
[314886956,1708618286330,-507.72,0.00033698,4]
[314886957,1708618286339,-1287.69,0.00033698,4]
[314886958,1708618286349,-500.0,0.00033698,4]
[314886959,1708618286358,-510.6765225,0.00033698,4]
[314886960,1708618286368,-500.0,0.00033698,4]
[314886961,1708618286377,-500.0,0.00033698,4]
[314886962,1708618286387,-500.0,0.00033698,2]
[314886963,1708618286397,-551.64412956,0.00033698,4]
[314886964,1708618286407,-894.45,0.00033698,4]
[314886965,1708618286417,-630.4,0.00033698,4]
[314886966,1708618286427,-500.0,0.00033698,4]
[314886967,1708618286437,-500.0,0.00033698,4]
[314886968,1708618286447,-500.0,0.00033698,4]
[314886969,1708618286457,-500.0,0.00033698,4]
[314886970,1708618286467,-604.50669241,0.00033698,4]
[314886971,1708618286477,-638.89,0.00033698,4]
[314886972,1708618286486,-500.0,0.00033698,4]
[314886973,1708618286496,-512.93,0.00033698,4]
[314886974,1708618286506,-500.0,0.00033698,4]
[314886975,1708618286516,-500.0,0.00033698,4]
[314886976,1708618286525,-500.0,0.00033698,4]
[314886977,1708618286535,-906.48,0.00033698,4]
[314886978,1708618286544,-1102.31,0.00033698,4]
[314886979,1708618286553,-315.75913741,0.00033698,4]
[314886980,1708618286563,-612.98,0.00033698,4]
[314886981,1708618286573,-500.0,0.00033698,4]
[314886982,1708618286583,-652.81,0.00033698,4]
[314886983,1708618286592,-514.91,0.00033698,4]
[314886984,1708618286602,-500.0,0.00033698,4]
[314886985,1708618286612,-500.0,0.00033698,4]
[314886986,1708618286622,-500.0,0.00033698,4]
[314886987,1708618286631,-691.7,0.00033698,4]
[314886988,1708618286641,-580.95,0.00033698,4]
[314886989,1708618286651,-500.0,0.00033698,4]
[314886990,1708618286661,-500.0,0.00033698,4]
[314886991,1708618286671,-500.0,0.00033698,4]
[314886992,1708618286681,-500.0,0.00033698,4]
[314886993,1708618286691,-834.16,0.00033698,4]
[314886994,1708618286702,-500.0,0.00033698,4]
[314886995,1708618286712,-500.0,0.00033698,4]
[314886996,1708618286722,-542.88,0.00033698,4]
[314886997,1708618286732,-500.0,0.00033698,4]
[314886998,1708618286742,-975.58,0.00033698,4]
[314886999,1708618286752,-500.0,0.00033698,4]
[314887000,1708618286763,-500.0,0.00033698,4]
[314887001,1708618286773,-500.0,0.00033698,4]
[314887002,1708618286783,-500.0,0.00033698,4]
[314887003,1708618286794,-150.0,0.00033698,4]
[314887004,1708618286804,-891.4,0.00033698,4]
[314887005,1708618286814,-1203.02,0.00033698,4]
[314887006,1708618286824,-500.0,0.00033698,4]
[314887007,1708618286834,-500.0,0.00033698,4]
[314887008,1708618286843,-500.0,0.00033698,4]
[314887009,1708618286853,-788.82,0.00033698,4]
[314887010,1708618286863,-500.0,0.00033698,4]
[314887011,1708618286873,-500.0,0.00033698,4]
[314887012,1708618286883,-746.08,0.00033698,4]
[314887013,1708618286892,-500.0,0.00033698,4]
[314887014,1708618286902,-500.0,0.00033698,4]
[314887015,1708618286912,-560.55,0.00033698,4]
[314887016,1708618286922,-562.47,0.00033698,4]
[314887017,1708618286932,-537.3,0.00033698,4]
[314887018,1708618286942,-500.0,0.00033698,4]
[314887019,1708618286951,-500.0,0.00033698,4]
[314887020,1708618286961,-500.0,0.00033698,4]
[314887021,1708618286972,-824.56,0.00033698,4]
[314887022,1708618286981,-500.0,0.00033698,4]
[314887023,1708618286991,-909.09,0.00033698,4]
[314887024,1708618287001,-500.0,0.00033698,4]
[314887025,1708618287011,-500.0,0.00033698,4]
[314887026,1708618287022,-500.0,0.00033698,4]
[314887027,1708618287032,-771.9,0.00033698,4]
[314887028,1708618287042,-500.0,0.00033698,4]
[314887029,1708618287052,-500.0,0.00033698,4]
[314887030,1708618287061,-618.1,0.00033698,4]
[314887031,1708618287072,-566.71,0.00033698,4]
[314887032,1708618287081,-3396.29,0.00033698,4]
[314887033,1708618287091,-500.0,0.00033698,4]
[314887034,1708618287100,-1000.0,0.00033698,7]
[314887035,1708618287110,-702.3,0.00033698,4]
[314887036,1708618287120,-788.62,0.00033698,4]
[314887037,1708618287129,-500.0,0.00033698,4]
[314887038,1708618287139,-500.0,0.00033698,4]
[314887039,1708618287149,-500.0,0.00033698,4]
[314887040,1708618287158,-689.47,0.00033698,4]
[314887041,1708618287168,-500.0,0.00033698,4]
[314887042,1708618287178,-500.0,0.00033698,4]
[314887043,1708618287187,-500.0,0.00033698,4]
[314887044,1708618287197,-500.0,0.00033698,4]
[314887045,1708618287206,-500.0,0.00033698,4]
[314887046,1708618287216,-907.94,0.00033698,4]
[314887047,1708618287225,-885.64,0.00033698,4]
[314887048,1708618287234,-538.25783554,0.00033698,4]
[314887049,1708618287244,-1733.3,0.00033698,4]
[314887050,1708618287253,-500.0,0.00033698,4]
[314887051,1708618287263,-500.0,0.00033698,4]
[314887052,1708618287273,-500.0,0.00033698,4]
[314887053,1708618287282,-683.07,0.00033698,4]
[314887054,1708618287292,-500.0,0.00033698,4]
[314887055,1708618287301,-800.64,0.00033698,4]
[314887056,1708618287311,-500.0,0.00033698,4]
[314887057,1708618287321,-692.0,0.00033698,4]
[314887058,1708618287331,-500.0,0.00033698,4]
[314887059,1708618287340,-696.6,0.00033698,4]
[314887060,1708618287356,-1079.35,0.00033698,4]
[314887061,1708618287366,-500.0,0.00033698,4]
[314887062,1708618287375,-500.0,0.00033698,4]
[314887063,1708618287384,-500.0,0.00033698,4]
[314887064,1708618287393,-500.0,0.00033698,4]
[314887065,1708618287403,-500.0,0.00033698,4]
[314887066,1708618287412,-500.0,0.00033698,4]
[314887067,1708618287422,-1257.16,0.00033698,4]
[314887068,1708618287431,-2402.47,0.00033698,4]
[314887069,1708618287442,-500.0,0.00033698,4]
[314887070,1708618287452,-729.4,0.00033698,4]
[314887071,1708618287461,-1114.12,0.00033698,4]
[314887072,1708618287471,-500.0,0.00033698,4]